fUST/lending_fUST_20241106
["ID","MTS","AMOUNT","RATE_DAILY","PERIOD"]
[341443141,1730887846821,-500.0,0.00027397,2]
[341443142,1730887846830,-500.0,0.00027397,2]
[341443143,1730887846839,-500.0,0.00027397,2]
[341443144,1730887846848,-562.83,0.00027397,2]
[341443145,1730887846858,-500.0,0.00027397,2]
[341443146,1730887846867,-500.0,0.00027397,2]
[341443147,1730887846876,-500.0,0.00027397,2]
[341443148,1730887846886,-500.0,0.00027397,2]
[341443149,1730887846895,-500.0,0.00027397,2]
[341443150,1730887846904,-500.0,0.00027397,2]
[341443151,1730887846913,-500.0,0.00027397,2]
[341443152,1730887846923,-514.72432807,0.00027397,2]
[341443153,1730887846932,-500.0,0.00027397,2]
[341443154,1730887846941,-502.32370115,0.00027397,2]
[341443155,1730887846950,-528.64060709,0.00027397,2]
[341443156,1730887846961,-500.0,0.00027397,2]
[341443157,1730887846970,-500.0,0.00027397,2]
[341443158,1730887846980,-500.0,0.00027397,2]
[341443159,1730887846989,-500.0,0.00027397,2]
[341443160,1730887847003,-500.0,0.00027397,2]
[341443161,1730887847012,-414.05229471,0.00027397,2]
[341443162,1730887847021,-500.0,0.00027397,2]
[341443163,1730887847031,-500.0,0.00027397,2]
[341443164,1730887847040,-343.70761727,0.00027397,2]
[341443165,1730887847049,-500.0,0.00027397,2]
[341443166,1730887847058,-507.19836782,0.00027397,2]
[341443167,1730887847067,-511.20982127,0.00027397,2]
[341443168,1730887847078,-503.88167079,0.00027397,2]
[341443169,1730887847087,-500.0,0.00027397,2]
[341443170,1730887847096,-500.0,0.00027397,2]
[341443171,1730887847105,-508.77007165,0.00027397,2]
[341443172,1730887847114,-500.0,0.00027397,2]
[341443173,1730887847123,-500.0,0.00027397,2]
[341443174,1730887847133,-500.0,0.00027397,2]
[341443175,1730887847142,-500.0,0.00027397,2]
[341443176,1730887847151,-500.0,0.00027397,2]
[341443177,1730887847160,-500.0,0.00027397,2]
[341443178,1730887847169,-256.37881866,0.00027397,2]
[341443179,1730887847179,-500.0,0.00027397,2]
[341443180,1730887847188,-500.0,0.00027397,2]
[341443181,1730887847198,-411.26814644,0.00027397,2]
[341443182,1730887847207,-514.78368988,0.00027397,2]
[341443183,1730887847216,-508.4573861,0.00027397,2]
[341443184,1730887847225,-584.47699531,0.00027397,2]
[341443185,1730887847234,-500.0,0.00027397,2]
[341443186,1730887847247,-500.0,0.00027397,2]
[341443187,1730887847256,-493.8670218,0.00027397,2]
[341443188,1730887847266,-500.0,0.00027397,2]
[341443189,1730887847275,-500.0,0.00027397,2]
[341443190,1730887847285,-500.0,0.00027397,2]
[341443191,1730887847294,-500.0,0.00027397,2]
[341443192,1730887847304,-565.07703586,0.00027397,2]
[341443193,1730887847314,-500.0,0.00027397,2]
[341443194,1730887847324,-500.0,0.00027397,2]
[341443195,1730887847333,-500.0,0.00027397,2]
[341443196,1730887847343,-500.0,0.00027397,2]
[341443197,1730887847352,-506.98241935,0.00027397,2]
[341443198,1730887847362,-500.0,0.00027397,2]
[341443199,1730887847371,-500.0,0.00027397,2]
[341443200,1730887847381,-500.0,0.00027397,2]
[341443201,1730887847391,-552.74056723,0.00027397,2]
[341443202,1730887847402,-500.0,0.00027397,2]
[341443203,1730887847412,-500.0,0.00027397,2]
[341443204,1730887847421,-557.65063019,0.00027397,2]
[341443205,1730887847431,-505.70730307,0.00027397,2]
[341443206,1730887847441,-587.3,0.00027397,2]
[341443207,1730887847451,-500.0,0.00027397,2]
[341443208,1730887847461,-500.0,0.00027397,2]
[341443209,1730887847472,-500.0,0.00027397,2]
[341443210,1730887847482,-500.0,0.00027397,2]
[341443211,1730887847492,-500.0,0.00027397,2]
[341443212,1730887847502,-500.0,0.00027397,2]
[341443213,1730887847511,-554.44706803,0.00027397,2]
[341443214,1730887847521,-500.0,0.00027397,2]
[341443215,1730887847531,-500.0,0.00027397,2]
[341443216,1730887847540,-506.11243307,0.00027397,2]
[341443217,1730887847549,-662.58,0.00027397,2]
[341443218,1730887847558,-514.55172765,0.00027397,2]
[341443219,1730887847568,-503.51324078,0.00027397,2]
[341443220,1730887847578,-500.0,0.00027397,2]
[341443221,1730887847588,-500.0,0.00027397,2]
[341443222,1730887847597,-500.0,0.00027397,2]
[341443223,1730887847606,-417.35145022,0.00027397,2]
[341443224,1730887847616,-500.0,0.00027397,2]
[341443225,1730887847625,-500.0,0.00027397,2]
[341443226,1730887847634,-500.0,0.00027397,2]
[341443227,1730887847643,-1262.07,0.00027397,2]
[341443228,1730887847653,-500.0,0.00027397,2]
[341443229,1730887847662,-500.0,0.00027397,2]
[341443230,1730887847671,-454.71529988,0.00027397,2]
[341443231,1730887847681,-500.0,0.00027397,2]
[341443232,1730887847690,-500.0,0.00027397,2]
[341443233,1730887847699,-500.0,0.00027397,2]
[341443234,1730887847710,-500.0,0.00027397,2]
[341443235,1730887847721,-500.0,0.00027397,2]
[341443236,1730887847731,-500.0,0.00027397,2]
[341443237,1730887847742,-500.0,0.00027397,2]
[341443238,1730887847752,-500.0,0.00027397,2]
[341443239,1730887847762,-500.0,0.00027397,2]
[341443240,1730887847771,-694.89,0.00027397,2]
[341443241,1730887847780,-160.13870932,0.00027397,2]
[341443242,1730887847790,-500.0,0.00027397,2]
[341443243,1730887847799,-500.0,0.00027397,2]
[341443244,1730887847809,-500.0,0.00027397,2]
[341443245,1730887847818,-500.0,0.00027397,2]
[341443246,1730887847827,-500.0,0.00027397,2]
[341443247,1730887847836,-1139.82,0.00027397,2]
[341443248,1730887847845,-500.0,0.00027397,2]
[341443249,1730887847856,-244.83777295,0.00027397,2]
[341443250,1730887847865,-500.0,0.00027397,2]
[341443251,1730887847874,-500.0,0.00027397,2]
[341443252,1730887847883,-500.0,0.00027397,2]
[341443253,1730887847892,-500.0,0.00027397,2]
[341443254,1730887847902,-500.0,0.00027397,2]
[341443255,1730887847911,-632.95,0.00027397,2]
[341443256,1730887847920,-3386.43,0.00027397,2]
[341443257,1730887847929,-500.0,0.00027397,2]
[341443258,1730887847943,-422.39368226,0.00027397,2]
[341443259,1730887847967,-500.0,0.00027397,2]
[341443260,1730887847990,-500.0,0.00027397,2]
[341443261,1730887848012,-500.0,0.00027397,2]
[341443262,1730887848035,-500.0,0.00027397,2]
[341443263,1730887848056,-509.844906,0.00027397,2]
[341443264,1730887848078,-500.0,0.00027397,2]
[341443265,1730887848099,-500.0,0.00027397,2]
[341443266,1730887848120,-500.0,0.00027397,2]
[341443267,1730887848142,-500.0,0.00027397,2]
[341443268,1730887848163,-500.0,0.00027397,2]
[341443269,1730887848180,-500.0,0.00027397,2]
[341443270,1730887848190,-500.0,0.00027397,2]
[341443271,1730887848199,-500.0,0.00027397,2]
[341443272,1730887848209,-500.0,0.00027397,2]
[341443273,1730887848217,-578.34811625,0.00027397,2]
[341443274,1730887848227,-500.0,0.00027397,2]
[341443275,1730887848236,-500.0,0.00027397,2]
[341443276,1730887848246,-500.0,0.00027397,2]
[341443277,1730887848255,-500.0,0.00027397,2]
[341443278,1730887848264,-5542.53,0.00027397,2]
[341443279,1730887848273,-500.0,0.00027397,2]
[341443280,1730887848282,-10093.5,0.00027397,2]
[341443281,1730887848291,-500.0,0.00027397,2]
[341443282,1730887848301,-427.15251484,0.00027397,2]
[341443283,1730887848310,-1882.95,0.00027397,2]
[341443284,1730887848320,-500.0,0.00027397,2]
[341443285,1730887848329,-500.0,0.00027397,2]
[341443286,1730887848339,-500.0,0.00027397,2]
[341443287,1730887848348,-790.42,0.00027397,2]
[341443288,1730887848357,-632.35,0.00027397,2]
[341443289,1730887848367,-497.38633113,0.00027397,2]
[341443290,1730887848376,-500.0,0.00027397,2]
[341443291,1730887848385,-500.0,0.00027397,2]
[341443292,1730887848398,-481.91059386,0.00027397,2]
[341443293,1730887848407,-181.00090255,0.00027397,2]
[341443294,1730887848417,-500.0,0.00027397,2]
[341443295,1730887848427,-1737.1,0.00027397,2]
[341443296,1730887848438,-244.26158918,0.00027397,2]
[341443297,1730887848447,-210.36428029,0.00027397,2]
[341443298,1730887848457,-500.0,0.00027397,2]
[341443299,1730887848466,-500.0,0.00027397,2]
[341443300,1730887848477,-500.0,0.00027397,2]
[341443301,1730887848487,-500.0,0.00027397,2]
[341443302,1730887848496,-500.0,0.00027397,2]
[341443303,1730887848506,-500.0,0.00027397,2]
[341443304,1730887848516,-500.0,0.00027397,2]
[341443305,1730887848526,-500.0,0.00027397,2]
[341443306,1730887848536,-500.0,0.00027397,2]
[341443307,1730887848545,-500.0,0.00027397,2]
[341443308,1730887848555,-481.53887937,0.00027397,2]
[341443309,1730887848564,-500.0,0.00027397,2]
[341443310,1730887848574,-500.0,0.00027397,2]
[341443311,1730887848583,-500.0,0.00027397,2]
[341443312,1730887848592,-500.0,0.00027397,2]
[341443313,1730887848601,-500.0,0.00027397,2]
[341443314,1730887848610,-500.0,0.00027397,2]
[341443315,1730887848619,-251.84509964,0.00027397,2]
[341443316,1730887848629,-500.0,0.00027397,2]
[341443317,1730887848639,-507.79034675,0.00027397,2]
[341443318,1730887848649,-500.0,0.00027671,2]
[341443319,1730887848658,-500.0,0.00027671,2]
[341443320,1730887848668,-500.0,0.00027671,2]
[341443321,1730887848677,-500.0,0.00027671,2]
[341443322,1730887848686,-500.0,0.00027671,2]
[341443323,1730887848696,-500.0,0.00027671,2]
[341443324,1730887848705,-500.0,0.00027671,2]
[341443325,1730887848715,-500.0,0.00027671,2]
[341443326,1730887848724,-500.0,0.00027671,2]
[341443327,1730887848733,-455.09859796,0.00027671,2]
[341443328,1730887848742,-500.0,0.00027671,2]
[341443329,1730887848753,-501.14428624,0.00027671,2]
[341443330,1730887848762,-500.0,0.00027671,2]
[341443331,1730887848771,-1459.62,0.00027671,2]
[341443332,1730887848781,-500.0,0.00027671,2]
[341443333,1730887848790,-500.0,0.00027671,2]
[341443334,1730887848799,-500.0,0.00027671,2]
[341443335,1730887848808,-500.0,0.00027671,2]
[341443336,1730887848817,-500.0,0.00027671,2]
[341443337,1730887848826,-500.0,0.00027671,2]
[341443338,1730887848835,-500.0,0.00027671,2]
[341443339,1730887848845,-500.0,0.00027671,2]
[341443340,1730887848854,-751.09,0.00027671,2]
[341443341,1730887848863,-500.0,0.00027671,2]
[341443342,1730887848874,-979.43,0.00027671,2]
[341443343,1730887848883,-1278.13,0.00027671,2]
[341443344,1730887848893,-500.0,0.00027671,2]
[341443345,1730887848902,-500.0,0.00027671,2]
[341443346,1730887848911,-500.0,0.00027671,2]
[341443347,1730887848921,-500.0,0.00027671,2]
[341443348,1730887848930,-156.29577733,0.00027671,2]
[341443349,1730887848939,-394.43314306,0.00027671,2]
[341443350,1730887848948,-350.45566383,0.00027671,2]
[341443351,1730887848958,-500.0,0.00027671,2]
[341443352,1730887848967,-500.0,0.00027671,2]
[341443353,1730887848978,-500.0,0.00027671,2]
[341443354,1730887848988,-500.0,0.00027671,2]
[341443355,1730887848998,-374.94904593,0.00027671,2]
[341443356,1730887849008,-663.63,0.00027671,2]
[341443357,1730887849018,-562.45901529,0.00027671,2]
[341443358,1730887849027,-500.0,0.00027671,2]
[341443359,1730887849036,-500.0,0.00027671,2]
[341443360,1730887849046,-562.83,0.00027671,2]
[341443361,1730887849057,-500.0,0.00027671,2]
[341443362,1730887849067,-528.41151678,0.00027671,2]
[341443363,1730887849077,-500.0,0.00027671,2]
[341443364,1730887849087,-500.0,0.00027671,2]
[341443365,1730887849096,-500.0,0.00027671,2]
[341443366,1730887849105,-500.0,0.00027671,2]
[341443367,1730887849115,-500.0,0.00027671,2]
[341443368,1730887849124,-500.0,0.00027671,2]
[341443369,1730887849134,-500.0,0.00027671,2]
[341443370,1730887849143,-500.0,0.00027671,2]
[341443371,1730887849152,-500.0,0.00027671,2]
[341443372,1730887849162,-500.0,0.00027671,2]
[341443373,1730887849171,-500.0,0.00027671,2]
[341443374,1730887849180,-500.0,0.00027671,2]
[341443375,1730887849191,-500.0,0.00027671,2]
[341443376,1730887849200,-500.0,0.00027671,2]
[341443377,1730887849211,-500.0,0.00027671,2]
[341443378,1730887849221,-500.0,0.00027671,2]
[341443379,1730887849231,-500.0,0.00027671,2]
[341443380,1730887849240,-207.54916805,0.00027671,2]
[341443381,1730887849250,-587.3,0.00027671,2]
[341443382,1730887849259,-500.0,0.00027671,2]
[341443383,1730887849269,-509.41554413,0.00027671,2]
[341443384,1730887849278,-662.58,0.00027671,2]
[341443385,1730887849288,-500.0,0.00027671,2]
[341443386,1730887849298,-500.0,0.00027671,2]
[341443387,1730887849308,-500.0,0.00027671,2]
[341443388,1730887849317,-1262.07,0.00027671,2]
[341443389,1730887849326,-500.0,0.00027671,2]
[341443390,1730887849336,-565.73,0.00027671,2]
[341443391,1730887849345,-500.0,0.00027671,2]
[341443392,1730887849354,-500.0,0.00027671,2]
[341443393,1730887849363,-520.66840443,0.00027671,2]
[341443394,1730887849374,-694.89,0.00027671,2]
[341443395,1730887849383,-500.0,0.00027671,2]
[341443396,1730887849498,-500.0,0.00027671,2]
[341443397,1730887849508,-1139.82,0.00027671,2]
[341443398,1730887849518,-500.0,0.00027671,2]
[341443399,1730887849527,-632.95,0.00027671,2]
[341443400,1730887849536,-3386.43,0.00027671,2]
[341443401,1730887849546,-500.0,0.00027671,2]
[341443402,1730887849556,-500.0,0.00027671,2]
[341443403,1730887849566,-500.0,0.00027671,2]
[341443404,1730887849587,-557.8377257,0.00027671,2]
[341443405,1730887849597,-500.0,0.00027671,2]
[341443406,1730887849606,-500.0,0.00027671,2]
[341443407,1730887849616,-500.0,0.00027671,2]
[341443408,1730887849627,-500.0,0.00027671,2]
[341443409,1730887849636,-500.0,0.00027671,2]
[341443410,1730887849647,-500.0,0.00027671,2]
[341443411,1730887849657,-500.0,0.00027671,2]
[341443412,1730887849668,-5542.53,0.00027671,2]
[341443413,1730887849678,-365.12377162,0.00027671,2]
[341443414,1730887849688,-10093.5,0.00027671,2]
[341443415,1730887849699,-558.2148999,0.00027671,2]
[341443416,1730887849708,-1882.95,0.00027671,2]
[341443417,1730887849718,-500.0,0.00027671,2]
[341443418,1730887849729,-500.0,0.00027671,2]
[341443419,1730887849739,-790.42,0.00027671,2]
[341443420,1730887849750,-632.35,0.00027671,2]
[341443421,1730887849760,-500.0,0.00027671,2]
[341443422,1730887849770,-1737.1,0.00027671,2]
[341443423,1730887849779,-300.29,0.00027671,2]
[341443424,1730887849789,-501.19461296,0.00027671,2]
[341443425,1730887849799,-500.0,0.00027673,5]
[341443426,1730887849808,-500.0,0.00027673,5]
[341443427,1730887849818,-504.48189481,0.00027673,5]
[341443428,1730887849828,-500.0,0.00027673,5]
[341443429,1730887849838,-5189.81318811,0.00027684,2]
[341443430,1730887849848,-210.26733421,0.00027945,2]
[341443431,1730887849857,-500.0,0.00027945,2]
[341443432,1730887849867,-500.0,0.00027945,2]
[341443433,1730887849876,-500.0,0.00027945,2]
[341443434,1730887849885,-509.03965714,0.00027945,2]
[341443435,1730887849896,-500.0,0.00027945,2]
[341443436,1730887849905,-500.0,0.00027945,2]
[341443437,1730887849914,-500.0,0.00027945,2]
[341443438,1730887849924,-500.0,0.00027945,2]
[341443439,1730887849934,-500.0,0.00027945,2]
[341443440,1730887849944,-500.0,0.00027945,2]
[341443441,1730887849953,-1459.62,0.00027945,2]
[341443442,1730887849963,-500.0,0.00027945,2]
[341443443,1730887849972,-500.0,0.00027945,2]
[341443444,1730887849981,-500.0,0.00027945,2]
[341443445,1730887849991,-500.0,0.00027945,2]
[341443446,1730887850000,-500.0,0.00027945,2]
[341443447,1730887850010,-500.0,0.00027945,2]
[341443448,1730887850020,-500.0,0.00027945,2]
[341443449,1730887850031,-500.0,0.00027945,2]
[341443450,1730887850041,-751.09,0.00027945,2]
[341443451,1730887850051,-500.0,0.00027945,2]
[341443452,1730887850061,-979.43,0.00027945,2]
[341443453,1730887850071,-1278.13,0.00027945,2]
[341443454,1730887850081,-464.27411409,0.00027945,2]
[341443455,1730887850090,-500.0,0.00027945,2]
[341443456,1730887850100,-514.70629,0.00027945,2]
[341443457,1730887850109,-500.0,0.00027945,2]
[341443458,1730887850119,-500.0,0.00027945,2]
[341443459,1730887850128,-500.0,0.00027945,2]
[341443460,1730887850137,-285.55491772,0.00027945,2]
[341443461,1730887850147,-508.95520663,0.00027945,2]
[341443462,1730887850157,-663.63,0.00027945,2]
[341443463,1730887850168,-500.0,0.00027945,2]
[341443464,1730887850182,-500.0,0.00027945,2]
[341443465,1730887850192,-562.83,0.00027945,2]
[341443466,1730887850202,-500.0,0.00027945,2]
[341443467,1730887850212,-500.0,0.00027945,2]
[341443468,1730887850221,-500.0,0.00027945,2]
[341443469,1730887850231,-500.0,0.00027945,2]
[341443470,1730887850241,-500.0,0.00027945,2]
[341443471,1730887850251,-500.0,0.00027945,2]
[341443472,1730887850262,-500.0,0.00027945,2]
[341443473,1730887850272,-365.21580839,0.00027945,2]
[341443474,1730887850283,-500.0,0.00027945,2]
[341443475,1730887850293,-500.0,0.00027945,2]
[341443476,1730887850303,-500.0,0.00027945,2]
[341443477,1730887850313,-500.0,0.00027945,2]
[341443478,1730887850323,-500.0,0.00027945,2]
[341443479,1730887850332,-500.0,0.00027945,2]
[341443480,1730887850342,-500.0,0.00027945,2]
[341443481,1730887850352,-500.0,0.00027945,2]
[341443482,1730887850362,-500.0,0.00027945,2]
[341443483,1730887850371,-500.0,0.00027945,2]
[341443484,1730887850382,-587.3,0.00027945,2]
[341443485,1730887850395,-500.0,0.00027945,2]
[341443486,1730887850405,-662.58,0.00027945,2]
[341443487,1730887850415,-500.0,0.00027945,2]
[341443488,1730887850424,-500.0,0.00027945,2]
[341443489,1730887850435,-500.0,0.00027945,2]
[341443490,1730887850444,-517.41543441,0.00027945,2]
[341443491,1730887850453,-1262.07,0.00027945,2]
[341443492,1730887850463,-500.0,0.00027945,2]
[341443493,1730887850474,-500.0,0.00027945,2]
[341443494,1730887850491,-694.89,0.00027945,2]
[341443495,1730887850515,-500.0,0.00027945,2]
[341443496,1730887850537,-500.0,0.00027945,2]
[341443497,1730887850558,-1139.82,0.00027945,2]
[341443498,1730887850581,-632.95,0.00027945,2]
[341443499,1730887850603,-3386.43,0.00027945,2]
[341443500,1730887850626,-512.37220923,0.00027945,2]
[341443501,1730887850648,-500.0,0.00027945,2]
[341443502,1730887850671,-500.0,0.00027945,2]
[341443503,1730887850692,-500.0,0.00027945,2]
[341443504,1730887850713,-500.0,0.00027945,2]
[341443505,1730887850731,-500.0,0.00027945,2]
[341443506,1730887850740,-500.0,0.00027945,2]
[341443507,1730887850752,-500.0,0.00027945,2]
[341443508,1730887850762,-500.0,0.00027945,2]
[341443509,1730887850775,-5542.53,0.00027945,2]
[341443510,1730887850785,-10093.5,0.00027945,2]
[341443511,1730887850795,-1882.95,0.00027945,2]
[341443512,1730887850804,-511.54163421,0.00027945,2]
[341443513,1730887850814,-561.15185286,0.00027945,2]
[341443514,1730887850824,-790.42,0.00027945,2]
[341443515,1730887850833,-632.35,0.00027945,2]
[341443516,1730887850843,-500.0,0.00027945,2]
[341443517,1730887850853,-1737.1,0.00027945,2]
[341443518,1730887850862,-500.0,0.00027973,5]
[341443519,1730887850871,-500.0,0.00027973,5]
[341443520,1730887850881,-500.0,0.00027973,5]
[341443521,1730887850891,-248.93589586,0.00027973,5]
[341443522,1730887850900,-150.565,0.0002814,60]
[341443523,1730887850911,-500.0,0.00028219,2]
[341443524,1730887850922,-500.0,0.00028219,2]
[341443525,1730887850935,-567.46258088,0.00028219,2]
[341443526,1730887850947,-500.0,0.00028219,2]
[341443527,1730887850958,-500.0,0.00028219,2]
[341443528,1730887850968,-500.0,0.00028219,2]
[341443529,1730887850977,-500.0,0.00028219,2]
[341443530,1730887850987,-500.0,0.00028219,2]
[341443531,1730887850997,-500.0,0.00028219,2]
[341443532,1730887851007,-1459.62,0.00028219,2]
[341443533,1730887851016,-500.0,0.00028219,2]
[341443534,1730887851025,-500.0,0.00028219,2]
[341443535,1730887851034,-500.0,0.00028219,2]
[341443536,1730887851044,-500.0,0.00028219,2]
[341443537,1730887851054,-500.0,0.00028219,2]
[341443538,1730887851063,-500.0,0.00028219,2]
[341443539,1730887851073,-500.0,0.00028219,2]
[341443540,1730887851082,-408.22426828,0.00028219,2]
[341443541,1730887851092,-751.09,0.00028219,2]
[341443542,1730887851101,-500.0,0.00028219,2]
[341443543,1730887851111,-979.43,0.00028219,2]
[341443544,1730887851120,-1278.13,0.00028219,2]
[341443545,1730887851129,-500.0,0.00028219,2]
[341443546,1730887851139,-500.0,0.00028219,2]
[341443547,1730887851148,-500.0,0.00028219,2]
[341443548,1730887851158,-500.0,0.00028219,2]
[341443549,1730887851167,-663.63,0.00028219,2]
[341443550,1730887851177,-500.0,0.00028219,2]
[341443551,1730887851186,-500.0,0.00028219,2]
[341443552,1730887851196,-562.83,0.00028219,2]
[341443553,1730887851205,-500.0,0.00028219,2]
[341443554,1730887851214,-500.0,0.00028219,2]
[341443555,1730887851224,-500.0,0.00028219,2]
[341443556,1730887851233,-500.0,0.00028219,2]
[341443557,1730887851242,-500.0,0.00028219,2]
[341443558,1730887851253,-404.81233352,0.00028219,2]
[341443559,1730887851263,-500.0,0.00028219,2]
[341443560,1730887851272,-500.0,0.00028219,2]
[341443561,1730887851282,-500.0,0.00028219,2]
[341443562,1730887851292,-500.0,0.00028219,2]
[341443563,1730887851301,-500.0,0.00028219,2]
[341443564,1730887851311,-500.0,0.00028219,2]
[341443565,1730887851321,-500.0,0.00028219,2]
[341443566,1730887851330,-500.0,0.00028219,2]
[341443567,1730887851340,-500.0,0.00028219,2]
[341443568,1730887851350,-500.0,0.00028219,2]
[341443569,1730887851360,-587.3,0.00028219,2]
[341443570,1730887851369,-261.7005143,0.00028219,2]
[341443571,1730887851378,-662.58,0.00028219,2]
[341443572,1730887851388,-500.0,0.00028219,2]
[341443573,1730887851401,-24.91520702,0.00028219,2]
[341443574,1730887949737,1169.27083333,0.0002082,2]
[341443576,1730888222062,175.0,9e-05,2]
[341443577,1730888270857,157.627262,0.00020442,2]
[341443580,1730888412841,2081.09801548,0.00034405,120]
[341443581,1730888443004,1998.26022178,0.00034405,30]
[341443582,1730888562171,1169.27083333,0.0002082,2]
[341443583,1730888607344,3000.0,0.00020361,2]
[341443604,1730888908647,166.023656,0.00013973,2]
[341443616,1730888956871,-1000.0,0.00021249,2]
[341443647,1730889032094,-333.9037003,0.00021142,2]
[341443648,1730889032122,-250.0,0.00021142,2]
[341443649,1730889034223,-585.36713303,0.00021142,2]
[341443650,1730889034250,-500.0,0.00021354,2]
[341443651,1730889034278,-500.0,0.00021354,2]
[341443652,1730889034310,-500.0,0.00021354,2]
[341443653,1730889034337,-500.0,0.00021354,2]
[341443654,1730889034364,-500.0,0.00021354,2]
[341443655,1730889034391,-500.0,0.00021354,2]
[341443656,1730889034419,-500.0,0.00021354,2]
[341443657,1730889034445,-500.0,0.00021354,2]
[341443658,1730889034474,-500.0,0.00021354,2]
[341443659,1730889034501,-500.0,0.00021354,2]
[341443660,1730889034528,-500.0,0.00021354,2]
[341443661,1730889034556,-500.0,0.00021354,2]
[341443662,1730889034583,-500.0,0.00021354,2]
[341443663,1730889034610,-500.0,0.00021354,2]
[341443664,1730889034637,-500.0,0.00021354,2]
[341443665,1730889034663,-500.0,0.00021354,2]
[341443666,1730889034690,-500.0,0.00021354,2]
[341443667,1730889034717,-500.0,0.00021354,2]
[341443668,1730889034748,-500.0,0.00021354,2]
[341443669,1730889034775,-500.0,0.00021354,2]
[341443670,1730889034802,-500.0,0.00021354,2]
[341443671,1730889034830,-500.0,0.00021354,2]
[341443672,1730889034855,-500.0,0.00021354,2]
[341443673,1730889034882,-500.0,0.00021354,2]
[341443674,1730889034908,-500.0,0.00021354,2]
[341443675,1730889034934,-500.0,0.00021354,2]
[341443676,1730889034959,-500.0,0.00021354,2]
[341443677,1730889034985,-500.0,0.00021354,2]
[341443678,1730889035009,-500.0,0.00021354,2]
[341443679,1730889035034,-500.0,0.00021354,2]
[341443680,1730889035060,-500.0,0.00021354,2]
[341443681,1730889035085,-500.0,0.00021354,2]
[341443682,1730889035110,-500.0,0.00021354,2]
[341443683,1730889035134,-500.0,0.00021354,2]
[341443684,1730889035160,-347.75611644,0.00021354,2]
[341443685,1730889035185,-196.36258513,0.00021354,2]
[341443686,1730889035211,-500.0,0.00021354,2]
[341443687,1730889035236,-500.0,0.00021354,2]
[341443688,1730889035261,-500.0,0.00021354,2]
[341443689,1730889035286,-500.0,0.00021354,2]
[341443690,1730889035451,-500.0,0.00021354,2]
[341443691,1730889035479,-500.0,0.00021354,2]
[341443692,1730889035504,-497.5141654,0.00021354,2]
[341443765,1730889038536,-2.4858346,0.00021354,2]
[341443767,1730889038546,-500.0,0.00021354,2]
[341443769,1730889038556,-500.0,0.00021354,2]
[341443772,1730889038567,-500.0,0.00021354,2]
[341443774,1730889038576,-500.0,0.00021354,2]
[341443776,1730889038586,-300.0,0.00021354,2]
[341443778,1730889038596,-300.0,0.00021354,2]
[341443780,1730889038605,-522.51755572,0.00021355,2]
[341443782,1730889038615,-329.62991031,0.0002136,2]
[341443784,1730889038624,-237.73777201,0.0002136,2]
[341443786,1730889038635,-5132.99085725,0.00021361,2]
[341443787,1730889038645,-500.0,0.00021813,2]